[Event "SixDays One Year GM-B 2023"]
[Site "Budapest"]
[Date "2023.09.21"]
[Round "6.2"]
[White "Yeganegi, Barad"]
[Black "Baum, Jonasz"]
[Result "1/2-1/2"]
[ECO "D35"]
[WhiteElo "2261"]
[BlackElo "2429"]
[Annotator "ChessBase"]
[PlyCount "92"]
[EventDate "2023.09.18"]
[EventType "tourn"]
[EventCountry "HUN"]
[SourceTitle "playchess.com"]
[Source "ChessBase"]
[SourceQuality "1"]
[TimeControl "5400+30"]

1. d4 {[%emt 0:00:02]} Nf6 {[%emt 0:00:05]} 2. c4 {[%emt 0:00:07]} e6 {[%emt 0:00:03]} 3. Nc3 {[%emt 0:00:05]} d5 {[%emt 0:00:04]} 4. cxd5 {[%emt 0:00:10]} exd5 {[%emt 0:00:03]} 5. Bg5 {[%emt 0:00:09]} c6 {[%emt 0:00:04]} 6. e3 {[%emt 0:00:11]} h6 {[%emt 0:00:03]} 7. Bh4 {[%emt 0:00:15]} Be7 {[%emt 0:00:05]} 8. Bd3 {[%emt 0:00:37]} O-O {[%emt 0:00:05]} 9. Nge2 {[%emt 0:00:35]} Re8 {[%emt 0:00:29]} 10. O-O {[%emt 0:00:23]} Nbd7 {[%emt 0:00:05]} 11. a4 {[%emt 0:00:46]} a5 {[%emt 0:04:13]} 12. f3 {[%emt 0:01:17]} Nf8 {[%emt 0:18:13]} 13. Bf2 {[%emt 0:09:58]} Ne6 {[%emt 0:04:16]} 14. Rc1 {[%emt 0:17:28]} c5 {[%emt 0:04:59]} 15. Bf5 {[%emt 0:15:38]} b6 {[%emt 0:07:05]} 16. Nb5 {[%emt 0:08:18]} Nc7 {[%emt 0:13:09]} 17. Bxc8 {[%emt 0:04:06]} Qxc8 {[%emt 0:00:16]} 18. Nec3 {[%emt 0:04:10]} Nxb5 {[%emt 0:01:42]} 19. Nxb5 {[%emt 0:00:49]} Qd7 {[%emt 0:02:43]} 20. Qd3 {[%emt 0:06:55]} Rac8 {[%emt 0:01:21]} 21. Rfd1 {[%emt 0:04:04]} cxd4 {[%emt 0:03:37]} 22. Qxd4 {[%emt 0:02:15]} Rxc1 {[%emt 0:02:52]} 23. Rxc1 {[%emt 0:00:05]} Bc5 {[%emt 0:01:15]} 24. Qd3 {[%emt 0:01:25]} Re5 {[%emt 0:01:04]} 25. b3 {[%emt 0:03:11]} Qe8 {[%emt 0:00:30]} 26. Nd4 {[%emt 0:00:47]} Nh7 {[%emt 0:01:33]} 27. Re1 {[%emt 0:10:23]} Nf8 {[%emt 0:13:11]} 28. Bg3 {[%emt 0:04:43]} Re7 {[%emt 0:00:01]} 29. Bh4 {[%emt 0:00:28]} Rd7 {[%emt 0:00:54]} 30. Bg3 {[%emt 0:00:59]} Ne6 {[%emt 0:01:29]} 31. Nxe6 {[%emt 0:00:46]} Qxe6 {[%emt 0:00:25]} 32. Bf2 {[%emt 0:00:28]} Re7 {[%emt 0:10:52]} 33. Kf1 {[%emt 0:01:04]} Qd6 {[%emt 0:02:19]} 34. Bg3 {[%emt 0:00:34]} Qc6 {[%emt 0:00:01]} 35. Bf2 {[%emt 0:00:37]} Re5 {[%emt 0:01:12]} 36. Bg3 {[%emt 0:01:04]} Re6 {[%emt 0:01:09]} 37. Bf2 {[%emt 0:00:18]} Qd6 {[%emt 0:03:05]} 38. Bg3 {[%emt 0:00:52]} Qc6 {[%emt 0:00:29]} 39. Bf2 {[%emt 0:00:04]} Qc7 {[%emt 0:01:17]} 40. Bg3 {[%emt 0:01:37]} Bd6 {[%emt 0:00:19]} 41. Bxd6 {[%emt 0:00:51]} Qxd6 {[%emt 0:00:01]} 42. Kg1 {[%emt 0:00:49]} Qe5 {[%emt 0:00:19]} 43. f4 {[%emt 0:00:28]} Qd6 {[%emt 0:01:56]} 44. Rd1 {[%emt 0:00:54]} Qc5 {[%emt 0:00:10]} 45. Kf2 {[%emt 0:00:08]} Re4 {[%emt 0:00:25]} 46. g3 {[%emt 0:00:14]} Re8 {[%emt 0:03:10]} 1/2-1/2

[Event "SixDays One Year GM-B 2023"]
[Site "Budapest"]
[Date "2023.09.21"]
[Round "6.3"]
[White "Xiao, Tong"]
[Black "Fodor, Tamas Jr."]
[Result "1-0"]
[ECO "C65"]
[WhiteElo "2452"]
[BlackElo "2486"]
[Annotator "ChessBase"]
[PlyCount "95"]
[EventDate "2023.09.18"]
[EventType "tourn"]
[EventCountry "HUN"]
[SourceTitle "playchess.com"]
[Source "ChessBase"]
[SourceQuality "1"]
[TimeControl "5400+30"]

1. e4 {[%emt 0:00:27]} e5 {[%emt 0:00:15]} 2. Nf3 {[%emt 0:00:08]} Nc6 {[%emt 0:00:06]} 3. Bb5 {[%emt 0:00:09]} Nf6 {[%emt 0:00:17]} 4. d3 {[%emt 0:03:04]} Bc5 {[%emt 0:01:20]} 5. c3 {[%emt 0:01:34]} d5 {[%emt 0:00:24]} 6. Nbd2 {[%emt 0:00:32]} O-O {[%emt 0:01:36]} 7. O-O {[%emt 0:00:15]} Bd6 {[%emt 0:05:21]} 8. Re1 {[%emt 0:06:13]} Bg4 {[%emt 0:06:34]} 9. h3 {[%emt 0:08:27]} Bh5 {[%emt 0:03:40]} 10. g4 {[%emt 0:13:07]} Bg6 {[%emt 0:02:13]} 11. Nh4 {[%emt 0:01:57]} Ne7 {[%emt 0:08:11]} 12. Ba4 {[%emt 0:14:01]} c6 {[%emt 0:03:14]} 13. Bc2 {[%emt 0:01:37]} Bc7 {[%emt 0:01:12]} 14. Nf5 {[%emt 0:00:46]} Nd7 {[%emt 0:00:51]} 15. Qf3 {[%emt 0:05:59]} Kh8 {[%emt 0:13:36]} 16. Nf1 {[%emt 0:00:46]} f6 {[%emt 0:03:21]} 17. N1g3 {[%emt 0:05:04]} Nc5 {[%emt 0:06:08]} 18. h4 {[%emt 0:03:30]} Ne6 {[%emt 0:01:50]} 19. Be3 {[%emt 0:02:17]} Bf7 {[%emt 0:03:25]} 20. Bb3 {[%emt 0:06:42]} Nxf5 {[%emt 0:05:07]} 21. Nxf5 {[%emt 0:04:25]} d4 {[%emt 0:00:17]} 22. Bd2 {[%emt 0:05:17]} Qd7 {[%emt 0:03:04]} 23. Rad1 {[%emt 0:02:01]} Rad8 {[%emt 0:00:34]} 24. Bxe6 {[%emt 0:03:14]} Bxe6 {[%emt 0:00:58]} 25. cxd4 {[%emt 0:03:35]} exd4 {[%emt 0:00:07]} 26. Bb4 {[%emt 0:01:17]} Rf7 {[%emt 0:00:30]} 27. h5 {[%emt 0:00:59]} b6 {[%emt 0:00:16]} 28. b3 {[%emt 0:00:46]} c5 {[%emt 0:03:00]} 29. Bd2 {[%emt 0:00:03]} g6 {[%emt 0:08:55]} 30. hxg6 {[%emt 0:00:27]} hxg6 {[%emt 0:00:27]} 31. Nh6 {[%emt 0:00:25]} Rff8 {[%emt 0:03:41]} 32. Kg2 {[%emt 0:00:26]} Kg7 {[%emt 0:00:05]} 33. Rh1 {[%emt 0:00:23]} Rh8 {[%emt 0:00:06]} 34. Rh4 {[%emt 0:01:05]} Rh7 {[%emt 0:02:34]} 35. Rdh1 {[%emt 0:01:27]} Rdh8 {[%emt 0:00:04]} 36. g5 {[%emt 0:00:57]} Bd8 {[%emt 0:05:29]} 37. Bf4 {[%emt 0:00:35]} a5 {[%emt 0:00:04]} 38. Qg3 {[%emt 0:00:50]} a4 {[%emt 0:02:05]} 39. gxf6+ {[%emt 0:01:34]} Bxf6 {[%emt 0:00:05]} 40. Be5 {[%emt 0:00:14]} Bxe5 {[%emt 0:03:41]} 41. Qxe5+ {[%emt 0:00:04]} Kf8 {[%emt 0:00:05]} 42. Rf4+ {[%emt 0:01:20]} Ke8 {[%emt 0:00:50]} 43. Ng8 {[%emt 0:03:25]} Rxh1 {[%emt 0:02:14]} 44. Nf6+ {[%emt 0:00:02]} Kd8 {[%emt 0:00:06]} 45. Nxd7 {[%emt 0:00:08]} Kxd7 {[%emt 0:00:04]} 46. Qg7+ {[%emt 0:00:45]} Kd6 {[%emt 0:00:15]} 47. e5+ {[%emt 0:00:31]} Kd5 {[%emt 0:00:55]} 48. Qc7 {[%emt 0:00:12]} 1-0

[Event "SixDays One Year GM-B 2023"]
[Site "Budapest"]
[Date "2023.09.21"]
[Round "6.4"]
[White "Lee, Jun Hyeok"]
[Black "Siddharth, Jagadeesh"]
[Result "1/2-1/2"]
[ECO "B67"]
[WhiteElo "2378"]
[BlackElo "2391"]
[Annotator "ChessBase"]
[PlyCount "40"]
[EventDate "2023.09.18"]
[EventType "tourn"]
[EventCountry "HUN"]
[SourceTitle "playchess.com"]
[Source "ChessBase"]
[SourceQuality "1"]
[TimeControl "5400+30"]

1. e4 {[%emt 0:00:01]} c5 {[%emt 0:03:28]} 2. Nf3 {[%emt 0:00:03]} d6 {[%emt 0:00:10]} 3. d4 {[%emt 0:00:04]} cxd4 {[%emt 0:00:06]} 4. Nxd4 {[%emt 0:00:02]} Nf6 {[%emt 0:00:12]} 5. Nc3 {[%emt 0:00:02]} Nc6 {[%emt 0:00:12]} 6. Bg5 {[%emt 0:00:04]} e6 {[%emt 0:00:13]} 7. Qd2 {[%emt 0:00:03]} a6 {[%emt 0:00:10]} 8. O-O-O {[%emt 0:00:06]} Bd7 {[%emt 0:00:07]} 9. Kb1 {[%emt 0:00:04]} Nxd4 {[%emt 0:00:20]} 10. Qxd4 Be7 {[%emt 0:00:09]} 11. f4 {[%emt 0:00:13]} Bc6 {[%emt 0:00:23]} 12. Bc4 {[%emt 0:00:05]} Qa5 {[%emt 0:03:47]} 13. e5 {[%emt 0:01:27]} dxe5 {[%emt 0:00:36]} 14. fxe5 {[%emt 0:00:05]} Rd8 {[%emt 0:04:00]} 15. Qf4 {[%emt 0:00:06]} Rxd1+ {[%emt 0:00:46]} 16. Rxd1 {[%emt 0:00:10]} Nd7 {[%emt 0:00:14]} 17. Bxe7 {[%emt 0:36:27]} Kxe7 {[%emt 0:00:21]} 18. Qh4+ {[%emt 0:14:18]} Ke8 {[%emt 0:01:42]} 19. Ne4 {[%emt 0:02:06]} Bxe4 {[%emt 0:00:33]} 20. Qxe4 {[%emt 0:00:13]} Qc7 {[%emt 0:02:24]} 1/2-1/2

[Event "SixDays One Year GM-B 2023"]
[Site "Budapest"]
[Date "2023.09.21"]
[Round "6.5"]
[White "Velikanov, Alexander"]
[Black "Palczert, Matyas"]
[Result "1/2-1/2"]
[ECO "B22"]
[WhiteElo "2327"]
[BlackElo "2340"]
[Annotator "ChessBase"]
[PlyCount "103"]
[EventDate "2023.09.18"]
[EventType "tourn"]
[EventCountry "HUN"]
[SourceTitle "playchess.com"]
[Source "ChessBase"]
[SourceQuality "1"]
[TimeControl "5400+30"]

1. e4 {[%emt 0:01:24]} c5 {[%emt 0:00:36]} 2. c3 {[%emt 0:00:15]} d5 {[%emt 0:05:32]} 3. exd5 {[%emt 0:00:08]} Nf6 {[%emt 0:00:12]} 4. Bb5+ {[%emt 0:00:06]} Nbd7 {[%emt 0:00:34]} 5. d4 {[%emt 0:02:22]} cxd4 {[%emt 0:00:29]} 6. Qxd4 {[%emt 0:01:38]} g6 {[%emt 0:00:43]} 7. Nf3 {[%emt 0:05:15]} Bg7 {[%emt 0:00:47]} 8. O-O {[%emt 0:01:19]} O-O {[%emt 0:00:22]} 9. d6 {[%emt 0:07:24]} exd6 {[%emt 0:06:16]} 10. Rd1 {[%emt 0:07:53]} d5 {[%emt 0:02:02]} 11. Qh4 {[%emt 0:00:46]} a6 {[%emt 0:02:09]} 12. Bxd7 {[%emt 0:03:02]} Nxd7 {[%emt 0:16:14]} 13. Qxd8 {[%emt 0:07:41]} Rxd8 {[%emt 0:00:07]} 14. Be3 {[%emt 0:01:06]} Ne5 {[%emt 0:06:05]} 15. Nxe5 {[%emt 0:00:32]} Bxe5 {[%emt 0:00:14]} 16. Nd2 {[%emt 0:05:22]} Bg4 {[%emt 0:10:43]} 17. Nf3 {[%emt 0:00:24]} Bxf3 {[%emt 0:01:54]} 18. gxf3 {[%emt 0:00:05]} b5 {[%emt 0:05:42]} 19. Rd3 {[%emt 0:01:25]} Rd7 {[%emt 0:05:47]} 20. Rad1 {[%emt 0:01:42]} Rad8 {[%emt 0:00:46]} 21. Bb6 {[%emt 0:02:41]} Rb8 {[%emt 0:00:10]} 22. Bc5 {[%emt 0:00:56]} Rbd8 {[%emt 0:01:01]} 23. Bb6 {[%emt 0:00:06]} Rb8 {[%emt 0:00:49]} 24. Ba5 {[%emt 0:00:09]} Re8 {[%emt 0:01:50]} 25. Rxd5 {[%emt 0:02:31]} Rxd5 {[%emt 0:00:23]} 26. Rxd5 {[%emt 0:00:03]} Bf4 {[%emt 0:00:29]} 27. Rd4 {[%emt 0:13:58]} g5 {[%emt 0:02:55]} 28. h4 {[%emt 0:02:38]} f6 {[%emt 0:02:36]} 29. Kf1 {[%emt 0:01:02]} Be5 {[%emt 0:02:32]} 30. Re4 {[%emt 0:00:38]} Kf7 {[%emt 0:01:18]} 31. hxg5 {[%emt 0:03:04]} fxg5 {[%emt 0:00:56]} 32. Bb6 {[%emt 0:00:18]} Re6 {[%emt 0:07:57]} 33. Be3 {[%emt 0:00:42]} Bf6 {[%emt 0:02:41]} 34. Bd4 {[%emt 0:06:15]} Bxd4 {[%emt 0:00:44]} 35. Rxd4 {[%emt 0:00:36]} Kg6 {[%emt 0:03:51]} 36. f4 {[%emt 0:01:09]} gxf4 {[%emt 0:02:24]} 37. Rxf4 {[%emt 0:00:02]} h5 {[%emt 0:00:12]} 38. f3 {[%emt 0:03:16]} Kg5 {[%emt 0:01:04]} 39. Rd4 {[%emt 0:00:10]} h4 {[%emt 0:01:48]} 40. Kf2 {[%emt 0:00:01]} Rh6 {[%emt 0:03:02]} 41. a4 {[%emt 0:03:05]} h3 {[%emt 0:01:18]} 42. Kg1 {[%emt 0:00:36]} bxa4 {[%emt 0:01:18]} 43. Rxa4 {[%emt 0:01:10]} Rb6 {[%emt 0:00:11]} 44. Kh2 {[%emt 0:02:20]} Rxb2+ {[%emt 0:00:06]} 45. Kxh3 {[%emt 0:00:06]} Rc2 {[%emt 0:01:08]} 46. Rc4 {[%emt 0:00:09]} a5 {[%emt 0:00:27]} 47. Kg3 {[%emt 0:00:23]} a4 {[%emt 0:00:11]} 48. Rc5+ {[%emt 0:01:07]} Kf6 {[%emt 0:00:14]} 49. Kf4 {[%emt 0:00:10]} a3 {[%emt 0:00:16]} 50. Rc6+ {[%emt 0:00:05]} Ke7 {[%emt 0:00:17]} 51. Ke4 {[%emt 0:00:23]} Rc1 {[%emt 0:00:43]} 52. Ra6 1/2-1/2

[Event "SixDays One Year GM-B 2023"]
[Site "Budapest"]
[Date "2023.09.22"]
[Round "7.1"]
[White "Palczert, Matyas"]
[Black "Grover, Sahaj"]
[Result "0-1"]
[ECO "C54"]
[WhiteElo "2340"]
[BlackElo "2488"]
[Annotator "ChessBase"]
[PlyCount "152"]
[EventDate "2023.09.18"]
[EventType "tourn"]
[EventCountry "HUN"]
[SourceTitle "playchess.com"]
[Source "ChessBase"]
[SourceQuality "1"]
[TimeControl "5400+30"]

1. e4 {[%emt 0:00:07]} e5 {[%emt 0:20:33]} 2. Nf3 {[%emt 0:00:11]} Nc6 {[%emt 0:00:06]} 3. Bc4 {[%emt 0:00:11]} Bc5 {[%emt 0:00:08]} 4. c3 {[%emt 0:00:17]} Nf6 {[%emt 0:00:08]} 5. d4 {[%emt 0:00:31]} exd4 {[%emt 0:00:08]} 6. cxd4 {[%emt 0:00:34]} Bb4+ {[%emt 0:00:22]} 7. Nbd2 {[%emt 0:00:13]} d5 {[%emt 0:06:00]} 8. exd5 {[%emt 0:03:22]} Nxd5 {[%emt 0:00:07]} 9. O-O {[%emt 0:00:38]} O-O {[%emt 0:00:07]} 10. a3 {[%emt 0:06:18]} Be7 {[%emt 0:00:19]} 11. Re1 {[%emt 0:03:51]} Bg4 {[%emt 0:02:10]} 12. h3 {[%emt 0:01:55]} Bh5 {[%emt 0:00:06]} 13. g4 {[%emt 0:02:13]} Bg6 {[%emt 0:00:13]} 14. Ne4 {[%emt 0:02:03]} Re8 {[%emt 0:05:31]} 15. Bxd5 {[%emt 0:12:00]} Qxd5 {[%emt 0:00:27]} 16. Nc3 {[%emt 0:00:15]} Qc4 {[%emt 0:06:41]} 17. d5 {[%emt 0:02:25]} Na5 {[%emt 0:00:36]} 18. Ne5 {[%emt 0:02:11]} Qb3 {[%emt 0:00:12]} 19. Nxg6 {[%emt 0:00:49]} hxg6 {[%emt 0:00:16]} 20. Qxb3 {[%emt 0:04:26]} Nxb3 {[%emt 0:00:07]} 21. Rb1 {[%emt 0:00:08]} Bd6 {[%emt 0:06:57]} 22. Be3 {[%emt 0:00:43]} a6 {[%emt 0:00:08]} 23. Rbd1 {[%emt 0:03:04]} f5 {[%emt 0:02:25]} 24. Ne2 {[%emt 0:04:32]} fxg4 {[%emt 0:05:03]} 25. hxg4 {[%emt 0:00:27]} Re4 {[%emt 0:00:04]} 26. g5 {[%emt 0:02:06]} Rae8 {[%emt 0:00:16]} 27. Kg2 {[%emt 0:10:04]} Na5 {[%emt 0:05:17]} 28. Nc3 {[%emt 0:08:56]} R4e5 {[%emt 0:01:06]} 29. Kf1 {[%emt 0:03:53]} Kf7 {[%emt 0:10:37]} 30. Bc1 {[%emt 0:02:24]} Rf5 {[%emt 0:04:56]} 31. Rxe8 {[%emt 0:02:51]} Kxe8 {[%emt 0:00:06]} 32. Ne4 {[%emt 0:00:45]} Nc4 {[%emt 0:00:35]} 33. Rd4 {[%emt 0:12:02]} b5 {[%emt 0:01:09]} 34. Rd3 {[%emt 0:05:26]} Nb6 {[%emt 0:01:33]} 35. Nc3 {[%emt 0:00:31]} Be7 {[%emt 0:04:16]} 36. Ke2 {[%emt 0:01:01]} Bxg5 {[%emt 0:01:33]} 37. Bxg5 {[%emt 0:00:18]} Rxg5 {[%emt 0:00:05]} 38. d6 {[%emt 0:00:20]} Re5+ {[%emt 0:00:07]} 39. Kf3 {[%emt 0:00:27]} c5 {[%emt 0:00:04]} 40. Kf4 {[%emt 0:01:25]} Rf5+ {[%emt 0:00:29]} 41. Ke4 {[%emt 0:01:00]} Kd7 {[%emt 0:00:34]} 42. Rg3 {[%emt 0:02:37]} Rf6 {[%emt 0:00:21]} 43. Rg5 {[%emt 0:00:06]} Kc6 {[%emt 0:02:14]} 44. b4 {[%emt 0:00:53]} cxb4 {[%emt 0:01:57]} 45. axb4 {[%emt 0:00:04]} Kxd6 {[%emt 0:00:05]} 46. Kd4 {[%emt 0:00:07]} Ke7 {[%emt 0:00:17]} 47. Ne4 {[%emt 0:00:54]} Rc6 {[%emt 0:00:11]} 48. Re5+ {[%emt 0:00:50]} Kf8 {[%emt 0:01:00]} 49. Ng5 {[%emt 0:00:52]} Rc4+ {[%emt 0:01:37]} 50. Kd3 {[%emt 0:00:06]} Rxb4 {[%emt 0:00:09]} 51. Re6 {[%emt 0:01:59]} Nd7 {[%emt 0:00:17]} 52. Ke3 {[%emt 0:00:04]} Rg4 {[%emt 0:07:28]} 53. f4 {[%emt 0:00:55]} a5 {[%emt 0:00:04]} 54. Kf3 {[%emt 0:00:37]} Rh4 {[%emt 0:00:07]} 55. Kg3 {[%emt 0:00:13]} Rh5 {[%emt 0:04:29]} 56. Ra6 {[%emt 0:00:30]} Rh1 {[%emt 0:01:09]} 57. Rxa5 {[%emt 0:00:07]} Rb1 {[%emt 0:00:05]} 58. Ra6 {[%emt 0:00:12]} b4 {[%emt 0:00:35]} 59. Ra7 {[%emt 0:01:30]} b3 {[%emt 0:00:57]} 60. Rxd7 {[%emt 0:00:28]} b2 {[%emt 0:00:07]} 61. Nf3 {[%emt 0:00:32]} Rc1 {[%emt 0:01:25]} 62. Nd2 {[%emt 0:00:05]} Rd1 {[%emt 0:00:04]} 63. Rb7 {[%emt 0:00:04]} Rxd2 {[%emt 0:00:05]} 64. Kf3 {[%emt 0:00:03]} Ke8 {[%emt 0:00:22]} 65. Ke3 {[%emt 0:00:11]} Rh2 {[%emt 0:00:08]} 66. Kd4 {[%emt 0:00:04]} Kd8 {[%emt 0:00:42]} 67. Ke5 {[%emt 0:00:47]} Kc8 {[%emt 0:00:12]} 68. Rb3 {[%emt 0:00:06]} Kd7 {[%emt 0:00:56]} 69. Rb8 {[%emt 0:01:08]} Rd2 {[%emt 0:00:28]} 70. Rb6 {[%emt 0:00:25]} Kc7 {[%emt 0:00:06]} 71. Rb3 {[%emt 0:00:07]} Kc6 {[%emt 0:00:03]} 72. Ke6 {[%emt 0:00:05]} Rd6+ {[%emt 0:00:04]} 73. Kf7 {[%emt 0:00:12]} Rd7+ {[%emt 0:00:04]} 74. Kxg6 {[%emt 0:00:04]} Rb7 {[%emt 0:00:03]} 75. Rc3+ {[%emt 0:00:06]} Kd5 {[%emt 0:00:18]} 76. Rd3+ {[%emt 0:00:12]} Ke4 {[%emt 0:00:06]} 0-1

[Event "SixDays One Year GM-B 2023"]
[Site "Budapest"]
[Date "2023.09.22"]
[Round "7.2"]
[White "Siddharth, Jagadeesh"]
[Black "Velikanov, Alexander"]
[Result "1/2-1/2"]
[ECO "B46"]
[WhiteElo "2391"]
[BlackElo "2327"]
[Annotator "RC"]
[PlyCount "35"]
[EventDate "2023.09.18"]
[EventType "tourn"]
[EventCountry "HUN"]
[SourceTitle "playchess.com"]
[Source "ChessBase"]
[SourceQuality "1"]
[TimeControl "5400+30"]

1. e4 {[%emt 0:02:20]} c5 {[%emt 0:06:00]} 2. Nf3 {[%emt 0:00:09]} e6 {[%emt 0:00:28]} 3. d4 {[%emt 0:00:35]} cxd4 {[%emt 0:00:04]} 4. Nxd4 {[%emt 0:00:08]} Nc6 {[%emt 0:00:04]} 5. Nc3 {[%emt 0:00:13]} a6 {[%emt 0:00:16]} 6. Nxc6 {[%emt 0:00:48]} bxc6 {[%emt 0:00:04]} 7. Qd3 {[%emt 0:00:23]} d5 {[%emt 0:01:04]} 8. Qg3 {[%emt 0:00:08]} Nf6 {[%emt 0:00:44]} 9. Be2 {[%emt 0:00:23]} g6 {[%emt 0:15:36]} 10. Bf4 {[%emt 0:08:52]} Bg7 {[%emt 0:01:37]} 11. O-O-O {[%emt 0:06:43]} Nd7 {[%emt 0:14:09]} 12. exd5 {[%emt 0:16:52]} cxd5 {[%emt 0:00:51]} 13. Bd6 {[%emt 0:00:59]} Qb6 {[%emt 0:03:03]} 14. Rhe1 {[%emt 0:03:03]} Bb7 {[%emt 0:01:43]} 15. Bc7 {[%emt 0:19:16]} Qc5 {[%emt 0:05:01]} 16. Bd6 {[%emt 0:03:06]} Qb6 {[%emt 0:00:29]} 17. Bc7 {[%emt 0:04:50]} Qc5 {[%emt 0:00:13]} 18. Bd6 1/2-1/2

[Event "SixDays One Year GM-B 2023"]
[Site "Budapest"]
[Date "2023.09.22"]
[Round "7.3"]
[White "Fodor, Tamas Jr."]
[Black "Lee, Jun Hyeok"]
[Result "1/2-1/2"]
[ECO "A40"]
[WhiteElo "2486"]
[BlackElo "2378"]
[Annotator "RC"]
[PlyCount "57"]
[EventDate "2023.09.18"]
[EventType "tourn"]
[EventCountry "HUN"]
[SourceTitle "playchess.com"]
[Source "ChessBase"]
[SourceQuality "1"]
[TimeControl "5400+30"]

1. d4 {[%emt 0:00:03]} g6 {[%emt 0:00:25]} 2. c4 {[%emt 0:00:09]} Bg7 {[%emt 0:00:05]} 3. e4 {[%emt 0:00:17]} e6 {[%emt 0:00:22]} 4. Nc3 {[%emt 0:00:26]} Ne7 {[%emt 0:00:05]} 5. Nf3 {[%emt 0:02:31]} d5 {[%emt 0:00:18]} 6. e5 {[%emt 0:01:19]} O-O {[%emt 0:01:44]} 7. Bg5 {[%emt 0:03:57]} c5 {[%emt 0:03:47]} 8. cxd5 {[%emt 0:11:00]} exd5 {[%emt 0:01:30]} 9. Nxd5 {[%emt 0:01:39]} Qxd5 {[%emt 0:04:23]} 10. Bxe7 {[%emt 0:00:15]} cxd4 {[%emt 0:05:49]} 11. Bxf8 {[%emt 0:03:00]} Bxf8 {[%emt 0:00:07]} 12. Bd3 {[%emt 0:03:11]} Bb4+ {[%emt 0:03:04]} 13. Kf1 {[%emt 0:01:22]} Nc6 {[%emt 0:04:10]} 14. Qe2 {[%emt 0:05:51]} Be6 {[%emt 0:03:21]} 15. a3 {[%emt 0:02:45]} Ba5 {[%emt 0:06:44]} 16. Rc1 {[%emt 0:01:00]} Qd7 {[%emt 0:09:16]} 17. Be4 {[%emt 0:05:12]} Bb6 {[%emt 0:05:18]} 18. h3 {[%emt 0:04:30]} d3 {[%emt 0:11:57]} 19. Qxd3 {[%emt 0:01:21]} Nd4 {[%emt 0:00:34]} 20. g4 {[%emt 0:06:58]} Rd8 {[%emt 0:04:12]} 21. Kg2 {[%emt 0:00:31]} Qa4 {[%emt 0:05:04]} 22. Bxb7 {[%emt 0:06:25]} Nxf3 {[%emt 0:09:41]} 23. Qxf3 {[%emt 0:00:46]} Rd2 {[%emt 0:00:25]} 24. Rhf1 {[%emt 0:00:38]} Bc4 {[%emt 0:06:14]} 25. Kg1 {[%emt 0:08:03]} Bxf1 {[%emt 0:00:55]} 26. Rc8+ {[%emt 0:03:03]} Kg7 {[%emt 0:12:11]} 27. Qf6+ {[%emt 0:20:01]} Kh6 {[%emt 0:00:01]} 28. b3 {[%emt 0:00:20]} Qd4 {[%emt 0:02:07]} 29. Qh4+ {[%emt 0:00:05]} 1/2-1/2

[Event "SixDays One Year GM-B 2023"]
[Site "Budapest"]
[Date "2023.09.22"]
[Round "7.4"]
[White "Baum, Jonasz"]
[Black "Xiao, Tong"]
[Result "1/2-1/2"]
[ECO "B52"]
[WhiteElo "2429"]
[BlackElo "2452"]
[Annotator "RC"]
[PlyCount "48"]
[EventDate "2023.09.18"]
[EventType "tourn"]
[EventCountry "HUN"]
[SourceTitle "playchess.com"]
[Source "ChessBase"]
[SourceQuality "1"]
[TimeControl "5400+30"]

1. e4 {[%emt 0:00:02]} c5 {[%emt 0:00:09]} 2. Nf3 {[%emt 0:00:05]} d6 {[%emt 0:00:10]} 3. Bb5+ {[%emt 0:00:04]} Bd7 {[%emt 0:00:08]} 4. Bxd7+ {[%emt 0:00:05]} Qxd7 {[%emt 0:00:04]} 5. c4 {[%emt 0:00:05]} e5 {[%emt 0:05:24]} 6. Nc3 {[%emt 0:00:10]} Nc6 {[%emt 0:00:16]} 7. d3 {[%emt 0:00:13]} h6 {[%emt 0:01:09]} 8. Nd5 {[%emt 0:00:34]} Nge7 {[%emt 0:03:02]} 9. a3 {[%emt 0:00:09]} Nxd5 {[%emt 0:02:39]} 10. cxd5 {[%emt 0:00:26]} Nd4 {[%emt 0:00:29]} 11. Nxd4 {[%emt 0:02:31]} exd4 {[%emt 0:00:46]} 12. O-O {[%emt 0:01:33]} Be7 {[%emt 0:00:38]} 13. f4 {[%emt 0:00:24]} Bf6 {[%emt 0:11:14]} 14. Bd2 {[%emt 0:07:49]} Rc8 {[%emt 0:11:59]} 15. a4 {[%emt 0:07:10]} O-O {[%emt 0:05:02]} 16. b3 {[%emt 0:03:49]} b5 {[%emt 0:04:44]} 17. axb5 {[%emt 0:01:34]} Rb8 {[%emt 0:01:59]} 18. Qc2 {[%emt 0:02:27]} Rxb5 {[%emt 0:00:21]} 19. Ra3 {[%emt 0:00:30]} Rfb8 {[%emt 0:01:18]} 20. Rfa1 {[%emt 0:04:38]} R8b7 {[%emt 0:03:03]} 21. h3 {[%emt 0:01:44]} Qc7 {[%emt 0:01:54]} 22. Qc4 {[%emt 0:04:06]} Qb8 {[%emt 0:05:01]} 23. Rb1 {[%emt 0:01:16]} Bd8 {[%emt 0:01:31]} 24. Kf2 {[%emt 0:05:41]} a5 {[%emt 0:00:59]} 1/2-1/2